[Event "VII Totalizator Sportowy 2022"]
[Site "Bydgoszcz"]
[Date "2022.07.03"]
[Round "9.5"]
[White "Prokofiev, Valentyn"]
[Black "Gumularz, Szymon"]
[Result "1/2-1/2"]
[ECO "A46"]
[WhiteElo "2362"]
[BlackElo "2513"]
[Annotator "TA"]
[PlyCount "87"]
[EventDate "2022.06.25"]
[EventType "swiss"]
[EventCountry "POL"]
[SourceTitle "playchess.com"]
[Source "ChessBase"]
[SourceQuality "1"]
[TimeControl "40/5400+30:1800+30"]

{[%evp 22,87,0,0,0,0,0,-6,0,-2,46,47,83,21,38,-25,-29,-33,-26,-17,-16,-15,-26,-14,-29,-13,-15,-30,-13,-18,0,0,0,-25,-27,-25,0,0,0,0,0,0,0,0,0,0,0,0,0,0,0,0,0,0,0,0,0,0,0,0,0,0,0,0,0,0,0,0]} 1. d4 {[%emt 0:00:01] Marin,M} Nf6 {[%emt 0:00:08]} 2. Nf3 {[%emt 0:00:09]} e6 {[%emt 0:00:22]} 3. c4 {[%emt 0:00:17]} d5 {[%emt 0:00:09]} 4. e3 {[%emt 0:00:05]} b6 {[%emt 0:00:41]} 5. b3 {[%emt 0:00:12]} Bb7 {[%emt 0:00:13]} 6. Bd3 {[%emt 0:00:05]} Bd6 {[%emt 0:00:09]} 7. O-O {[%emt 0:00:08]} Nbd7 {[%emt 0:00:16]} 8. Bb2 {[%emt 0:00:08]} O-O {[%emt 0:00:16]} 9. Nc3 {[%emt 0:00:03]} a6 {[%emt 0:00:09]} 10. Rc1 {[%emt 0:00:05]} Qe7 {[%emt 0:02:50]} 11. Na4 {[%emt 0:04:28]} dxc4 {[%emt 0:03:41]} 12. bxc4 {[%emt 0:00:21][%cal Oc4c5]} c5 {[%emt 0:01:06] E14: Queen's Indian: Classical Variation (4 e3).} 13. Ne5 {[%emt 0:08:16]} cxd4 {[%emt 0:10:58]} 14. exd4 {[%emt 0:00:45]} Rfd8 {[%emt 0:12:09][%cal Ob6b5]} 15. Qe2 {[%emt 0:07:17] [#]} Qe8 $146 {[%emt 0:20:45]} (15... b5 $11) ({Predecessor:} 15... Ba3 16. Nxd7 Qxd7 17. Bxa3 Qxa4 18. Bb2 Qc6 19. f3 b5 20. cxb5 Qb6 21. a4 axb5 22. axb5 {1-0 (58) Marin,M (2544)-Nevednichy,V (2525) Porto Mannu 2018 CBM 185 [Marin,M]}) 16. f4 $1 $14 {[%emt 0:12:50]} Be7 {[%emt 0:01:37]} 17. Nc3 {[%emt 0:09:55]} (17. f5 $16 {Threatens to win with fxe6.} Nxe5 18. dxe5 Qxa4 19. fxe6 (19. exf6 Bc5+ 20. Kh1 Qc6 $11) 19... Bc5+ 20. Kh1) 17... Nf8 {[%emt 0:01:09]} 18. Rcd1 {[%emt 0:11:13]} (18. Nb1 $14) 18... Rxd4 $11 {[%emt 0:13:52]} 19. Nd5 {[%emt 0:04:56]} Rxd5 {[%emt 0:01:31]} 20. cxd5 {[%emt 0:00:21]} Bc5+ {[%emt 0:00:45]} 21. Kh1 {[%emt 0:01:10] [#] And now dxe6 would win.} Nxd5 {[%emt 0:01:51] ...Ne3 is the strong threat.} 22. Be4 $1 {[%emt 0:01:26]} f5 {[%emt 0:02:39]} 23. Bxd5 {[%emt 0:03:04]} Bxd5 {[%emt 0:01:17]} 24. Bd4 {[%emt 0:05:56]} Bxd4 {[%emt 0:08:39]} 25. Rxd4 {[%emt 0:01:36]} Nd7 {[%emt 0:00:53]} 26. Nc4 {[%emt 0:02:47]} b5 {[%emt 0:04:57]} 27. Nd6 {[%emt 0:06:34][%cal Bc4d6,Bd6c8,Bc8e7,Be7d5,Bd5f6][%mdl 32]} Qg6 {[%emt 0:00:32]} (27... Qf8 $2 {[#]} 28. Rxd5 $1 {[%mdl 512]} exd5 29. Qe6+ Kh8 30. Nf7+ Kg8 31. Ne5+ Kh8 32. Qxd7 $18) 28. Rc1 {[%emt 0:00:35]} Rd8 {[%emt 0:01:51] aiming for ...Nb6.} 29. Rc8 {[%emt 0:05:45] The position is equal.} Rxc8 {[%emt 0:00:34]} 30. Nxc8 {[%emt 0:00:05] Black must now prevent Ne7+.} Qf6 {[%emt 0:01:16] Against Ne7+} 31. Rxd5 {[%emt 0:02:18]} exd5 {[%emt 0:00:18][%mdl 4096] Endgame KQN-KQN} 32. Qe8+ {[%emt 0:00:03]} Nf8 {[%emt 0:00:13] ( -> ...Qa1+)} 33. Ne7+ $1 {[%emt 0:00:02]} Kh8 {[%emt 0:00:03][%cal Rf6a1]} 34. h3 {[%emt 0:00:05]} g6 {[%emt 0:07:00]} 35. Nxd5 {[%emt 0:06:35]} Qa1+ {[%emt 0:00:36]} 36. Kh2 {[%emt 0:00:07][%cal Re8f8] Active counter play!} Qg7 {[%emt 0:00:03]} 37. Qc6 {[%emt 0:00:27]} Qf7 {[%emt 0:00:39]} 38. Qc3+ {[%emt 0:04:43]} Kg8 {[%emt 0:01:12]} 39. Nf6+ {[%emt 0:03:24]} Kh8 {[%emt 0:00:01]} 40. Ne8+ {[%emt 0:00:00]} Kg8 {[%emt 0:00:00]} 41. Nf6+ {[%emt 0:03:24]} Kh8 {[%emt 0:00:06]} 42. Ng4+ {[%emt 0:11:22]} Qg7 {[%emt 0:00:07]} 43. Ne5 {[%emt 0:00:04]} Kg8 $1 {[%emt 0:08:36]} 44. Qb3+ {[%emt 0:11:50] Weighted Error Value: White=0.10 (very precise) /Black=0.06 (flawless)} 1/2-1/2

[Event "VII Totalizator Sportowy 2022"]
[Site "Bydgoszcz"]
[Date "2022.07.03"]
[Round "9.6"]
[White "Lewtak, Damian"]
[Black "Sernecki, Franciszek"]
[Result "1-0"]
[ECO "A05"]
[WhiteElo "2384"]
[BlackElo "2272"]
[Annotator "TA"]
[PlyCount "75"]
[EventDate "2022.06.25"]
[EventType "swiss"]
[EventCountry "POL"]
[SourceTitle "playchess.com"]
[Source "ChessBase"]
[SourceQuality "1"]
[TimeControl "40/5400+30:1800+30"]

{[%evp 9,74,-3,0,-2,7,0,0,0,0,-14,4,14,11,3,0,-4,-11,-16,-12,-18,-2,-5,1,-22,-2,-20,-22,-29,-30,-21,0,0,0,0,0,0,0,0,0,0,0,0,0,0,42,42,163,161,161,163,256,241,283,237,424,323,418,437,868,866,1628,1629,1749,1754,29996,29997,29999]} 1. Nf3 {[%emt 0:00:02]} Nf6 {[%emt 0:00:24]} 2. e3 {[%emt 0:00:10]} e6 {[%emt 0:00:16]} 3. b3 {[%emt 0:00:07]} d5 {[%emt 0:00:26]} 4. Bb2 {[%emt 0:00:06]} Be7 {[%emt 0:03:14]} 5. g3 {[%emt 0:03:14]} O-O {[%emt 0:01:47]} 6. Bg2 {[%emt 0:00:04] A06: Réti Opening: 1 Nf3 d5.} b6 {[%emt 0:00:53]} 7. O-O {[%emt 0:00:10]} Bb7 {[%emt 0:00:21]} 8. Ne5 {[%emt 0:02:52] The position is equal.} c5 {[%emt 0:04:13]} 9. d3 {[%emt 0:01:41][%cal Bd2d3,Bd3d4][%mdl 32]} Nc6 {[%emt 0:03:13]} 10. Nxc6 {[%emt 0:01:03]} Bxc6 {[%emt 0:00:08]} 11. Nd2 {[%emt 0:00:05][%cal Bb1d2,Bd2f3,Bf3e5][%mdl 32] [#]} Nd7 $146 {[%emt 0:03:17]} ({Predecessor:} 11... Rc8 12. f4 c4 13. bxc4 dxc4 14. Bxc6 c3 15. Bxc3 Rxc6 16. Bd4 Nd5 17. c4 Nb4 {1-0 (52) Omeri,S (2255)-Ballista,M (2080) Treviso Lega 2018}) 12. f4 {[%emt 0:02:37]} Bf6 {[%emt 0:04:48]} 13. d4 {[%emt 0:00:55]} Rc8 {[%emt 0:06:43]} 14. Nf3 {[%emt 0:05:26]} g6 {[%emt 0:04:21]} 15. Ne5 $1 {[%emt 0:02:11]} Bb7 {[%emt 0:03:07]} 16. g4 {[%emt 0:08:48]} Bg7 {[%emt 0:06:14]} 17. g5 {[%emt 0:00:57]} (17. a4 {is interesting.} Qc7 18. Qe2 cxd4 19. Nxd7 d3 20. cxd3 Qxd7 21. Bxg7 Kxg7 22. Qb2+) 17... cxd4 {[%emt 0:08:57]} 18. exd4 {[%emt 0:03:16]} Nxe5 {[%emt 0:02:36]} 19. dxe5 {[%emt 0:00:12]} h6 {[%emt 0:03:22]} 20. h4 {[%emt 0:06:36]} h5 {[%emt 0:01:41]} 21. Bd4 {[%emt 0:02:42]} Re8 {[%emt 0:02:47]} 22. c3 {[%emt 0:02:43]} Bf8 {[%emt 0:03:35]} 23. b4 {[%emt 0:01:21]} Ba6 {[%emt 0:03:32]} 24. Rf2 {[%emt 0:01:09]} Qd7 {[%emt 0:02:04]} 25. a4 {[%emt 0:01:29][%cal Ba2a4,Ba4a5][%mdl 32]} Bc4 {[%emt 0:01:29]} 26. a5 {[%emt 0:00:42]} b5 {[%emt 0:13:18]} 27. Bf3 {[%emt 0:01:37]} a6 {[%emt 0:00:28] Loses the game.} (27... Rc6 $14) 28. Rg2 $18 {[%emt 0:01:07]} Bg7 {[%emt 0:01:25]} 29. Rg3 {[%emt 0:00:46]} Rc7 {[%emt 0:06:19]} (29... Qc6 $142) 30. Rb1 {[%emt 0:01:13][%cal Ba1b1,Bb1b2,Bb2g2][%mdl 32]} Qc6 {[%emt 0:02:47]} 31. Rb2 {[%emt 0:00:32]} Qb7 $2 {[%emt 0:03:27]} (31... Ree7 {was called for.} 32. Kh2 Rc8) 32. Rbg2 {[%emt 0:00:34]} Ree7 {[%emt 0:02:57] [#]} 33. Bxh5 $1 {[%emt 0:03:02][%mdl 512]} gxh5 {[%emt 0:00:19]} (33... Qc8 $142 34. Bg4 Red7) (33... Kf8 34. Bg4) 34. Qxh5 {[%emt 0:00:06] aiming for g6.} Bb3 {[%emt 0:00:36]} 35. g6 {[%emt 0:02:24]} fxg6 {[%emt 0:00:31]} 36. Rxg6 {[%emt 0:00:13][%cal Bg3g6,Bg6h6,Bh6h8][%mdl 32] Intending Rh6 and mate.} Qc8 {[%emt 0:01:45]} 37. Rh6 {[%emt 0:00:39][%csl Gh5][%cal Rh6h8]} Bc2 {[%emt 0:00:41]} 38. Rh8# {[%emt 0:00:10] Weighted Error Value: White=0.06 (flawless) /Black=0.49} 1-0

[Event "VII Totalizator Sportowy 2022"]
[Site "Bydgoszcz"]
[Date "2022.07.03"]
[Round "9.7"]
[White "Kosakowski, Jakub"]
[Black "Rudzinska, Michalina"]
[Result "1-0"]
[ECO "B42"]
[WhiteElo "2435"]
[BlackElo "2236"]
[Annotator "TA"]
[PlyCount "145"]
[EventDate "2022.06.25"]
[EventType "swiss"]
[EventCountry "POL"]
[SourceTitle "playchess.com"]
[Source "ChessBase"]
[SourceQuality "1"]
[TimeControl "40/5400+30:1800+30"]

{[%evp 16,145,42,37,51,5,0,28,27,6,62,47,67,0,0,-37,-5,-52,-55,-56,0,0,0,0,0,-16,-12,-23,10,21,14,9,45,46,103,-30,-35,-32,-38,-28,-32,-36,-42,-29,-33,-28,-23,-34,-36,-40,-34,-34,0,0,21,16,65,47,50,23,47,33,24,10,11,4,8,0,0,0,0,0,0,0,0,0,111,104,104,103,124,106,106,106,106,106,106,106,106,106,106,106,106,106,106,106,106,106,106,106,106,106,106,106,106,106,106,106,106,68,106,0,106,106,106,106,106,0,106,0,106,0,0,0,0,0,0,0,0,0,0,4]} 1. e4 {[%emt 0:00:27]} c5 {[%emt 0:00:10]} 2. Nf3 {[%emt 0:00:24]} e6 {[%emt 0:00:10]} 3. d4 {[%emt 0:01:07]} cxd4 {[%emt 0:00:16]} 4. Nxd4 {[%emt 0:00:24]} a6 {[%emt 0:00:09]} 5. Bd3 {[%emt 0:00:42]} Bc5 {[%emt 0:00:16]} 6. Nb3 {[%emt 0:00:13]} Ba7 {[%emt 0:00:09]} 7. Nc3 {[%emt 0:00:39]} Nc6 {[%emt 0:00:28]} 8. Qe2 {[%emt 0:00:15] 8.Qg4 is the modern continuation.} Nge7 {[%emt 0:00:19]} 9. Be3 {[%emt 0:04:09]} O-O {[%emt 0:00:24] B42: Sicilian: Kan Variation: 5 Bd3.} 10. O-O-O {[%emt 0:03:22]} (10. Bxa7 $14 Rxa7 11. O-O) 10... b5 $11 {[%emt 0:03:00]} 11. f4 {[%emt 0:25:30]} b4 {[%emt 0:18:30] White has an edge.} 12. Na4 {[%emt 0:00:24]} d5 {[%emt 0:01:25]} (12... d6 $11) 13. Bxa7 {[%emt 0:04:18]} Rxa7 {[%emt 0:00:25] [#]} 14. exd5 $146 {[%emt 0:01:49]} (14. Qf2 $14) ({Predecessor:} 14. e5 Qc7 15. Kb1 Bd7 16. Nac5 a5 17. Nxd7 Qxd7 18. Nd2 a4 19. Nf3 Rc8 20. Ng5 {1-0 (29) Niemi,K (2209)-Luukkonen,T (2226) Tampere 2004}) 14... Nxd5 {[%emt 0:00:47]} 15. Qe4 {[%emt 0:01:02][%csl Gd3][%cal Re4h7] [#]} g6 $1 {[%emt 0:03:32]} 16. h4 {[%emt 0:01:29]} (16. Rhf1 $11 {feels stronger.}) 16... Qd6 $15 {[%emt 0:09:15]} 17. g3 {[%emt 0:05:35]} Nce7 {[%emt 0:04:17]} (17... h5 $1 $15) 18. h5 {[%emt 0:03:06]} Nf5 {[%emt 0:04:41] Inhibits Qd4.} 19. hxg6 {[%emt 0:01:58]} fxg6 {[%emt 0:00:19]} 20. Qf3 {[%emt 0:05:51]} Rc7 $1 {[%emt 0:07:11] White must now prevent ...Bd7.} 21. Qf2 {[%emt 0:21:37]} Qc6 {[%emt 0:13:34]} 22. Nbc5 {[%emt 0:01:28]} Nde3 {[%emt 0:04:55][%cal Bd5e3,Be3g4,Bg4f6,Bf6e4,Be4d6][%mdl 32]} 23. Rde1 {[%emt 0:01:11]} Qd5 {[%emt 0:02:38]} (23... Ng4 $5 {[%cal Rg4f2]} 24. Qg1 Rd8 $11) 24. Kb1 {[%emt 0:00:46]} e5 {[%emt 0:16:22]} (24... Ng4 $14 25. Qe2 Nxg3 26. Qxg4 Nxh1) 25. Rhg1 {[%emt 0:07:55]} ({Better is} 25. fxe5 $16 {Be4 is the strong threat.} Ng4 26. Qd2 (26. Qf4 Nd4 $14)) 25... Ng4 $11 {[%emt 0:02:10]} (25... exf4 26. Qxf4 (26. gxf4 Re7 $11) 26... Rxc5 27. Nxc5 Qxc5 28. g4 $14) 26. Qe2 {[%emt 0:01:05] [#] Strongly threatening Bc4.} Nfe3 $36 {[%emt 0:00:07][%mdl 2048] Prevents Bc4. Black is more active.} 27. Be4 {[%emt 0:04:24]} Qd4 {[%emt 0:00:36]} 28. Qd3 {[%emt 0:00:21]} Qxd3 {[%emt 0:02:04]} 29. Nxd3 {[%emt 0:01:15]} Nxc2 {[%emt 0:04:45]} 30. Rc1 {[%emt 0:00:37]} Nf6 {[%emt 0:00:07]} 31. Rxc2 {[%emt 0:02:04]} Rxc2 {[%emt 0:00:11]} 32. Kxc2 {[%emt 0:00:02] aiming for Bh1.} Nxe4 {[%emt 0:00:08]} 33. Nxe5 {[%emt 0:00:09]} Be6 {[%emt 0:02:08]} 34. Kd3 {[%emt 0:00:29]} Nd6 {[%emt 0:00:41]} 35. Nc5 {[%emt 0:00:27][%csl LRa6,LRe6] Pair of Knights!} Bf5+ {[%emt 0:00:27]} (35... Bxa2 $11 36. Nxa6 Be6) 36. Ke3 {[%emt 0:00:31]} (36. Kd4 $5 {[%cal Rc5a6]}) 36... a5 {[%emt 0:01:17]} 37. Rd1 {[%emt 0:00:15]} Rc8 {[%emt 0:00:31]} 38. Rxd6 {[%emt 0:01:31]} Rxc5 $14 {[%emt 0:00:04][%mdl 4096] Endgame KRB-KRN} 39. Rc6 {[%emt 0:00:14]} Rd5 {[%emt 0:00:55]} 40. g4 {[%emt 0:00:00]} Bb1 {[%emt 0:00:00]} 41. Rc8+ {[%emt 0:02:57]} Kg7 {[%emt 0:01:21]} 42. Rc7+ {[%emt 0:00:23]} Kg8 {[%emt 0:03:27]} 43. Nd7 {[%emt 0:10:45] Hoping for Nf6+.} Rd3+ {[%emt 0:01:51]} 44. Ke2 {[%emt 0:00:21]} Rh3 {[%emt 0:05:02]} 45. Nf6+ {[%emt 0:01:31]} Kh8 {[%emt 0:00:53]} (45... Kf8 $1 $11) 46. a3 {[%emt 0:01:33]} bxa3 {[%emt 0:02:40]} 47. bxa3 {[%emt 0:00:16]} a4 {[%emt 0:00:49]} 48. g5 {[%emt 0:02:28]} Ba2 {[%emt 0:00:20]} 49. Ra7 {[%emt 0:00:25]} Bb3 {[%emt 0:00:21]} 50. Kd2 {[%emt 0:00:17]} Rh2+ {[%emt 0:01:09]} 51. Ke3 {[%emt 0:00:46]} Rh1 {[%emt 0:01:23]} 52. Kd4 {[%emt 0:01:30]} Rd1+ {[%emt 0:02:00]} 53. Kc5 {[%emt 0:01:03][%csl Gf6][%cal Ra7h7]} Rc1+ {[%emt 0:00:30]} 54. Kb5 {[%emt 0:00:36][%csl Gf6][%cal Ra7h7]} Rh1 {[%emt 0:00:32]} 55. Re7 {[%emt 0:01:08]} Rh3 {[%emt 0:01:10]} 56. Kc6 {[%emt 0:01:03]} Rh1 {[%emt 0:00:22]} 57. Kd7 {[%emt 0:00:23]} Rh3 {[%emt 0:02:16]} 58. Ke8 {[%emt 0:00:19]} Rh4 {[%emt 0:01:37]} 59. Kf8 {[%emt 0:00:26]} Rh1 {[%emt 0:00:57]} 60. Ra7 {[%emt 0:01:24]} Rh3 {[%emt 0:02:19]} 61. Rb7 {[%emt 0:03:57] White is more active.} Rh1 {[%emt 0:00:28]} 62. Rb8 {[%emt 0:03:10]} Re1 {[%emt 0:01:43]} 63. Rb7 {[%emt 0:00:41][%csl Gf6][%cal Rb7h7]} Rh1 {[%emt 0:00:10]} 64. Rd7 {[%emt 0:00:02]} Rh3 {[%emt 0:03:12]} 65. Rd8 {[%emt 0:01:22] White wants to mate with Ke7+.} Re3 {[%emt 0:02:45]} 66. Rd7 {[%emt 0:02:38][%csl Gf6][%cal Rd7h7]} Rh3 {[%emt 0:00:09]} 67. Rd8 {[%emt 0:02:40] Intending Ke7+ and mate.} Re3 $1 {[%emt 0:00:09]} 68. Nd5 {[%emt 0:00:02] Against Rc3} ({White should try} 68. Rc8 $16) 68... Bxd5 $11 {[%emt 0:03:38] The position is equal.} 69. Rxd5 {[%emt 0:00:04] Threatening mate with Kf7.} Rf3 {[%emt 0:00:47]} (69... Rxa3 {gets mated.} 70. Kf7 h5 71. Kxg6 Re3 72. Rd8+) 70. Rd4 {[%emt 0:01:03] Kf7 would kill now.} h6 $1 {[%emt 0:00:10]} (70... Rxa3 {is a self mate.} 71. Kf7 h5 72. Kxg6 Re3 73. Rd8+) 71. Ke7 {[%emt 0:00:49] And now Kf6 would win.} hxg5 {[%emt 0:00:41]} 72. fxg5 {[%emt 0:00:04]} Rf5 {[%emt 0:01:40]} ({But not} 72... Rxa3 73. Kf7 Rf3+ 74. Kxg6 $16) 73. Rxa4 {[%mdl 32768] Weighted Error Value: White=0.13 (very precise) /Black=0.11 (very precise) . Loss on time!?} 1-0

[Event "VII Totalizator Sportowy 2022"]
[Site "Bydgoszcz"]
[Date "2022.07.03"]
[Round "9.8"]
[White "Chojnacki, Krzysztof"]
[Black "Hnydiuk, Aleksander"]
[Result "1/2-1/2"]
[ECO "E48"]
[WhiteElo "2371"]
[BlackElo "2394"]
[Annotator "TA"]
[PlyCount "69"]
[EventDate "2022.06.25"]
[EventType "swiss"]
[EventCountry "POL"]
[SourceTitle "playchess.com"]
[Source "ChessBase"]
[SourceQuality "1"]
[TimeControl "40/5400+30:1800+30"]

{[%evp 13,69,-12,0,-17,0,7,8,0,197,171,193,168,199,196,168,180,172,167,152,82,84,78,68,75,91,74,77,72,84,82,118,118,110,110,127,116,112,110,121,122,125,149,139,139,135,142,137,133,137,132,137,141,140,0,23,0,136,0]} 1. d4 Nf6 {[%emt 0:03:10]} 2. c4 {[%emt 0:00:15]} e6 {[%emt 0:00:09]} 3. Nc3 {[%emt 0:00:36]} Bb4 {[%emt 0:00:05]} 4. e3 {[%emt 0:00:26]} O-O {[%emt 0:00:06]} 5. Bd3 {[%emt 0:00:06]} d5 {[%emt 0:00:27]} 6. cxd5 {[%emt 0:00:26]} exd5 {[%emt 0:00:21]} 7. Nge2 {[%emt 0:00:36]} Re8 {[%emt 0:04:42]} 8. Bd2 {[%emt 0:00:15] E48: Nimzo-Indian: Rubinstein: 5 Bd3 d5 including 6 Ne2, but excluding 6 a3.} c6 {[%emt 0:02:21]} 9. O-O {[%emt 0:05:43]} Bd6 {[%emt 0:00:18]} 10. Rc1 {[%emt 0:09:06] The position is equal.} Bxh2+ $2 {[%emt 0:56:02]} 11. Kxh2 $18 {[%emt 0:02:59] Hoping for Rh1.} Ng4+ {[%emt 0:00:04]} 12. Kg3 $1 {[%emt 0:01:26] [#]} (12. Kg1 {gets mated.} Qh4 13. Bxh7+ Kxh7 14. Qc2+ f5 15. Rfe1 Qxf2+ 16. Kh1 Rh8 17. Ng1 Kg8+ 18. Nh3 Rxh3+ $1 {[%mdl 512]} 19. gxh3 Qh2#) 12... h5 $146 {[%emt 0:00:04] And now ...h4+ would win.} ({Predecessor:} 12... Qg5 13. f4 Qe7 14. Nxd5 cxd5 15. Rxc8 Rxc8 16. Kxg4 Nd7 17. Kf3 Nf6 18. g4 Ne4 {0-1 (60) Blohberger,F (2469)-Quparadze,G (2463) Chess.com INT 2020}) 13. Rh1 {[%emt 0:17:32] Against h4+} ({Weaker is} 13. Nf4 Qg5 14. Qe1 Nxe3+ 15. Kh2 Ng4+ 16. Kg1 Rxe1 $17) 13... h4+ {[%emt 0:04:52]} 14. Rxh4 {[%emt 0:00:32]} Nxf2 {[%emt 0:00:26] [#]} 15. Kxf2 {[%emt 0:10:08]} Qxh4+ {[%emt 0:00:05] [#]} 16. Kg1 {[%emt 0:00:08]} (16. Ng3 $142 $1) 16... Nd7 $16 {[%emt 0:06:51]} 17. Qf1 {[%emt 0:06:20]} Nf6 {[%emt 0:00:30]} 18. Qf4 {[%emt 0:01:17] The board is on fire.} Qxf4 {[%emt 0:01:46]} 19. Nxf4 {[%emt 0:01:24][%cal Be2f4,Bf4h3,Bh3g5][%mdl 32]} Bg4 {[%emt 0:00:36]} 20. Nh3 {[%emt 0:07:28]} Re7 {[%emt 0:02:04]} 21. Ng5 {[%emt 0:01:08]} Rae8 {[%emt 0:00:34]} 22. Nf3 {[%emt 0:00:58]} Bc8 {[%emt 0:04:52]} 23. Ne5 {[%emt 0:01:34]} Ng4 {[%emt 0:00:35]} 24. Nxg4 {[%emt 0:00:07] White is more active.} Bxg4 {[%emt 0:00:04]} 25. Rf1 {[%emt 0:02:06]} Bc8 {[%emt 0:06:44]} 26. Rf4 {[%emt 0:02:03]} Re6 {[%emt 0:00:53]} 27. Rh4 {[%emt 0:05:22]} Rh6 {[%emt 0:00:57] Inhibits Bh7+.} 28. Rxh6 {[%emt 0:04:09]} gxh6 {[%emt 0:00:02]} 29. e4 {[%emt 0:01:10]} dxe4 {[%emt 0:00:16]} 30. Nxe4 {[%emt 0:00:51] Strongly threatening Nf6+.} Rd8 {[%emt 0:03:31]} 31. Nf6+ {[%emt 0:07:39]} Kg7 {[%emt 0:00:35]} 32. Nh5+ {[%emt 0:00:10]} Kg8 {[%emt 0:00:21]} 33. Nf6+ {[%emt 0:04:32]} (33. Be3 $16) 33... Kg7 $11 {[%emt 0:00:04] [#]} 34. Nh5+ {[%emt 0:00:08]} (34. Be1 $1 $11) 34... Kg8 $16 {[%emt 0:00:02]} 35. Nf6+ {Weighted Error Value: White=0.17 (very precise) /Black=0.18 (very precise)} (35. Be3 $16) 1/2-1/2